{"text_format":"1","workbook":"xlsx","n_sheets":6,"sheets":["Klasse 1","Klasse 2","Klasse 3","Klasse 5","Resultater på en side","Bruksanvisning"],"not_rendered":{"charts":0,"images":4,"macros":1,"external_links":0,"defined_names":13,"comments":4,"pivot_tables":0},"unopened":[],"bounds":{"document_bytes":16777216,"sheet_cells":100000,"rows_first":2000,"rows_last":500,"rows_between":2000,"halvings":0,"cell_chars":16384,"cell_head_chars":4096},"cells_cut":0,"cells_raw":0,"read":"whole","date_system":"1900"}

{"sheet":"Klasse 1","index":0,"n_rows":47,"n_cols":20,"rows_kept":47,"cut":false,"hidden":false,"merged":[[5,5,5,7],[5,8,5,10],[5,11,5,13],[0,2,0,13],[1,2,1,13],[2,2,2,13],[3,0,3,19]]}
[]
[null,null,"Søndag 23.04.17 - Eikås Motorsenter, Bergen"]
[null,null,"Arrangør: Hordaland Motorsport"]
["Tid = Klokketid (ikke inklusive kjegleberøringer).    p = Antall berørte kjegler.    SG = Antall feilet Stop&Go - 3 runder/2 tellende"]
[null,"Resultater Standard Klasse 1"]
[null,null,null,null,null,"1. runde",null,null,"2. runde",null,null,"3. runde",null,null,null,null,null,null,null,"Slutt-"]
[null,"Startnr","Navn","Klubb","Bil","Tid","p","SG","Tid","p","SG","Tid","p","SG","Resultat A","R1","R2","R3","De to beste","resultat"]
["1.",101,null,null,null,null,null,null,null,null,null,null,null,null,{"$f":"IF(N(S8),INT(S8/60)*10000+(S8-INT(S8/60)*60)*100,\"Ikke fullført\")","v":"Ikke fullført"},{"$f":"IF(N(F8),(+F8/100-INT(F8/10000)*100+INT(F8/10000)*60+G8*2+H8*5),\"\")","v":""},{"$f":"IF(N(I8),(+I8/100-INT(I8/10000)*100+INT(I8/10000)*60+J8*2+K8*5),\"\")","v":""},{"$f":"IF(N(L8),(+L8/100-INT(L8/10000)*100+INT(L8/10000)*60+M8*2+N8*5),\"\")","v":""},{"$f":"IF(COUNT(P8:R8)>=2,SMALL(P8:R8,1)+SMALL(P8:R8,2),\"Ikke fullført\")","v":"Ikke fullført"},{"$f":"IF(N(S8),INT(S8/60)*10000+(S8-INT(S8/60)*60)*100,\"Ikke fullført\")","v":"Ikke fullført"}]
["2.",102,null,null,null,null,null,null,null,null,null,null,null,null,"Ikke fullført","","","","Ikke fullført","Ikke fullført"]
["3.",103,null,null,null,null,null,null,null,null,null,null,null,null,"Ikke fullført","","","","Ikke fullført","Ikke fullført"]
["4.",104,null,null,null,null,null,null,null,null,null,null,null,null,"Ikke fullført","","","","Ikke fullført","Ikke fullført"]
["5.",105,null,null,null,null,null,null,null,null,null,null,null,null,"Ikke fullført","","","","Ikke fullført","Ikke fullført"]
["6.",106,null,null,null,null,null,null,null,null,null,null,null,null,"Ikke fullført","","","","Ikke fullført","Ikke fullført"]
["7.",107,null,null,null,null,null,null,null,null,null,null,null,null,"Ikke fullført","","","","Ikke fullført","Ikke fullført"]
["8.",108,null,null,null,null,null,null,null,null,null,null,null,null,"Ikke fullført","","","","Ikke fullført","Ikke fullført"]
["9.",109,null,null,null,null,null,null,null,null,null,null,null,null,"Ikke fullført","","","","Ikke fullført","Ikke fullført"]
["10.",110,null,null,null,null,null,null,null,null,null,null,null,null,"Ikke fullført","","","","Ikke fullført","Ikke fullført"]
["11.",111,null,null,null,null,null,null,null,null,null,null,null,null,"Ikke fullført","","","","Ikke fullført","Ikke fullført"]
["12.",112,null,null,null,null,null,null,null,null,null,null,null,null,"Ikke fullført","","","","Ikke fullført","Ikke fullført"]
["13.",113,null,null,null,null,null,null,null,null,null,null,null,null,"Ikke fullført","","","","Ikke fullført","Ikke fullført"]
["14.",114,null,null,null,null,null,null,null,null,null,null,null,null,"Ikke fullført","","","","Ikke fullført","Ikke fullført"]
["15.",115,null,null,null,null,null,null,null,null,null,null,null,null,"Ikke fullført","","","","Ikke fullført","Ikke fullført"]
["16.",null,null,null,null,null,null,null,null,null,null,null,null,null,"Ikke fullført","","","","Ikke fullført","Ikke fullført"]
["17.",null,null,null,null,null,null,null,null,null,null,null,null,null,"Ikke fullført","","","","Ikke fullført","Ikke fullført"]
["18.",null,null,null,null,null,null,null,null,null,null,null,null,null,"Ikke fullført","","","","Ikke fullført","Ikke fullført"]
["19.",null,null,null,null,null,null,null,null,null,null,null,null,null,"Ikke fullført","","","","Ikke fullført","Ikke fullført"]
["20.",null,null,null,null,null,null,null,null,null,null,null,null,null,"Ikke fullført","","","","Ikke fullført","Ikke fullført"]
["21.",null,null,null,null,null,null,null,null,null,null,null,null,null,"Ikke fullført","","","","Ikke fullført","Ikke fullført"]
["22.",null,null,null,null,null,null,null,null,null,null,null,null,null,"Ikke fullført","","","","Ikke fullført","Ikke fullført"]
["23.",null,null,null,null,null,null,null,null,null,null,null,null,null,"Ikke fullført","","","","Ikke fullført","Ikke fullført"]
["24.",null,null,null,null,null,null,null,null,null,null,null,null,null,"Ikke fullført","","","","Ikke fullført","Ikke fullført"]
["25.",null,null,null,null,null,null,null,null,null,null,null,null,null,"Ikke fullført","","","","Ikke fullført","Ikke fullført"]
["26.",null,null,null,null,null,null,null,null,null,null,null,null,null,"Ikke fullført","","","","Ikke fullført","Ikke fullført"]
["27.",null,null,null,null,null,null,null,null,null,null,null,null,null,"Ikke fullført","","","","Ikke fullført","Ikke fullført"]
["28.",null,null,null,null,null,null,null,null,null,null,null,null,null,"Ikke fullført","","","","Ikke fullført","Ikke fullført"]
["29.",null,null,null,null,null,null,null,null,null,null,null,null,null,"Ikke fullført","","","","Ikke fullført","Ikke fullført"]
["30.",null,null,null,null,null,null,null,null,null,null,null,null,null,"Ikke fullført","","","","Ikke fullført","Ikke fullført"]
["31.",null,null,null,null,null,null,null,null,null,null,null,null,null,"Ikke fullført","","","","Ikke fullført","Ikke fullført"]
["32.",null,null,null,null,null,null,null,null,null,null,null,null,null,"Ikke fullført","","","","Ikke fullført","Ikke fullført"]
["33.",null,null,null,null,null,null,null,null,null,null,null,null,null,"Ikke fullført","","","","Ikke fullført","Ikke fullført"]
["34.",null,null,null,null,null,null,null,null,null,null,null,null,null,"Ikke fullført","","","","Ikke fullført","Ikke fullført"]
["35.",null,null,null,null,null,null,null,null,null,null,null,null,null,"Ikke fullført","","","","Ikke fullført","Ikke fullført"]
["36.",null,null,null,null,null,null,null,null,null,null,null,null,null,"Ikke fullført","","","","Ikke fullført","Ikke fullført"]
["37.",null,null,null,null,null,null,null,null,null,null,null,null,null,"Ikke fullført","","","","Ikke fullført","Ikke fullført"]
["38.",null,null,null,null,null,null,null,null,null,null,null,null,null,"Ikke fullført","","","","Ikke fullført","Ikke fullført"]
["39.",null,null,null,null,null,null,null,null,null,null,null,null,null,"Ikke fullført","","","","Ikke fullført","Ikke fullført"]
["40.",null,null,null,null,null,null,null,null,null,null,null,null,null,"Ikke fullført","","","","Ikke fullført","Ikke fullført"]

{"sheet":"Klasse 2","index":1,"n_rows":47,"n_cols":20,"rows_kept":47,"cut":false,"hidden":false,"merged":[[0,2,0,13],[1,2,1,13],[2,2,2,13],[5,5,5,7],[5,8,5,10],[5,11,5,13],[3,0,3,19]]}
[]
[null,null,{"$f":"+'Klasse 1'!C2:N2","v":"Søndag 23.04.17 - Eikås Motorsenter, Bergen"}]
[null,null,{"$f":"+'Klasse 1'!C3:N3","v":"Arrangør: Hordaland Motorsport"}]
["Tid = Klokketid (ikke inklusive kjegleberøringer).    p = Antall berørte kjegler.    SG = Antall feilet Stop&Go - 3 runder/2 tellende"]
[null,"Resultater Modifisert Klasse 2"]
[null,null,null,null,null,"1. runde",null,null,"2. runde",null,null,"3. runde",null,null,null,null,null,null,null,"Slutt-"]
[null,"Startnr","Navn","Klubb","Bil","Tid","p","SG","Tid","p","SG","Tid","p","SG","Resultat A","R1","R2","R3","De to beste","resultat"]
["1.",201,null,null,null,null,null,null,null,null,null,null,null,null,{"$f":"IF(N(S8),INT(S8/60)*10000+(S8-INT(S8/60)*60)*100,\"Ikke fullført\")","v":"Ikke fullført"},{"$f":"IF(N(F8),(+F8/100-INT(F8/10000)*100+INT(F8/10000)*60+G8*2+H8*5),\"\")","v":""},{"$f":"IF(N(I8),(+I8/100-INT(I8/10000)*100+INT(I8/10000)*60+J8*2+K8*5),\"\")","v":""},{"$f":"IF(N(L8),(+L8/100-INT(L8/10000)*100+INT(L8/10000)*60+M8*2+N8*5),\"\")","v":""},{"$f":"IF(COUNT(P8:R8)>=2,SMALL(P8:R8,1)+SMALL(P8:R8,2),\"Ikke fullført\")","v":"Ikke fullført"},{"$f":"IF(N(S8),INT(S8/60)*10000+(S8-INT(S8/60)*60)*100,\"Ikke fullført\")","v":"Ikke fullført"}]
["2.",202,null,null,null,null,null,null,null,null,null,null,null,null,"Ikke fullført","","","","Ikke fullført","Ikke fullført"]
["3.",203,null,null,null,null,null,null,null,null,null,null,null,null,"Ikke fullført","","","","Ikke fullført","Ikke fullført"]
["4.",204,null,null,null,null,null,null,null,null,null,null,null,null,"Ikke fullført","","","","Ikke fullført","Ikke fullført"]
["5.",205,null,null,null,null,null,null,null,null,null,null,null,null,"Ikke fullført","","","","Ikke fullført","Ikke fullført"]
["6.",206,null,null,null,null,null,null,null,null,null,null,null,null,"Ikke fullført","","","","Ikke fullført","Ikke fullført"]
["7.",207,null,null,null,null,null,null,null,null,null,null,null,null,"Ikke fullført","","","","Ikke fullført","Ikke fullført"]
["8.",208,null,null,null,null,null,null,null,null,null,null,null,null,"Ikke fullført","","","","Ikke fullført","Ikke fullført"]
["9.",209,null,null,null,null,null,null,null,null,null,null,null,null,"Ikke fullført","","","","Ikke fullført","Ikke fullført"]
["10.",210,null,null,null,null,null,null,null,null,null,null,null,null,"Ikke fullført","","","","Ikke fullført","Ikke fullført"]
["11.",211,null,null,null,null,null,null,null,null,null,null,null,null,"Ikke fullført","","","","Ikke fullført","Ikke fullført"]
["12.",212,null,null,null,null,null,null,null,null,null,null,null,null,"Ikke fullført","","","","Ikke fullført","Ikke fullført"]
["13.",213,null,null,null,null,null,null,null,null,null,null,null,null,"Ikke fullført","","","","Ikke fullført","Ikke fullført"]
["14.",214,null,null,null,null,null,null,null,null,null,null,null,null,"Ikke fullført","","","","Ikke fullført","Ikke fullført"]
["15.",215,null,null,null,null,null,null,null,null,null,null,null,null,"Ikke fullført","","","","Ikke fullført","Ikke fullført"]
["16.",216,null,null,null,null,null,null,null,null,null,null,null,null,"Ikke fullført","","","","Ikke fullført","Ikke fullført"]
["17.",217,null,null,null,null,null,null,null,null,null,null,null,null,"Ikke fullført","","","","Ikke fullført","Ikke fullført"]
["18.",218,null,null,null,null,null,null,null,null,null,null,null,null,"Ikke fullført","","","","Ikke fullført","Ikke fullført"]
["19.",219,null,null,null,null,null,null,null,null,null,null,null,null,"Ikke fullført","","","","Ikke fullført","Ikke fullført"]
["20.",220,null,null,null,null,null,null,null,null,null,null,null,null,"Ikke fullført","","","","Ikke fullført","Ikke fullført"]
["21.",221,null,null,null,null,null,null,null,null,null,null,null,null,"Ikke fullført","","","","Ikke fullført","Ikke fullført"]
["22.",222,null,null,null,null,null,null,null,null,null,null,null,null,"Ikke fullført","","","","Ikke fullført","Ikke fullført"]
["23.",223,null,null,null,null,null,null,null,null,null,null,null,null,"Ikke fullført","","","","Ikke fullført","Ikke fullført"]
["24.",224,null,null,null,null,null,null,null,null,null,null,null,null,"Ikke fullført","","","","Ikke fullført","Ikke fullført"]
["25.",225,null,null,null,null,null,null,null,null,null,null,null,null,"Ikke fullført","","","","Ikke fullført","Ikke fullført"]
["26.",226,null,null,null,null,null,null,null,null,null,null,null,null,"Ikke fullført","","","","Ikke fullført","Ikke fullført"]
["27.",227,null,null,null,null,null,null,null,null,null,null,null,null,"Ikke fullført","","","","Ikke fullført","Ikke fullført"]
["28.",228,null,null,null,null,null,null,null,null,null,null,null,null,"Ikke fullført","","","","Ikke fullført","Ikke fullført"]
["29.",229,null,null,null,null,null,null,null,null,null,null,null,null,"Ikke fullført","","","","Ikke fullført","Ikke fullført"]
["30.",230,null,null,null,null,null,null,null,null,null,null,null,null,"Ikke fullført","","","","Ikke fullført","Ikke fullført"]
["31.",null,null,null,null,null,null,null,null,null,null,null,null,null,"Ikke fullført","","","","Ikke fullført","Ikke fullført"]
["32.",null,null,null,null,null,null,null,null,null,null,null,null,null,"Ikke fullført","","","","Ikke fullført","Ikke fullført"]
["33.",null,null,null,null,null,null,null,null,null,null,null,null,null,"Ikke fullført","","","","Ikke fullført","Ikke fullført"]
["34.",null,null,null,null,null,null,null,null,null,null,null,null,null,"Ikke fullført","","","","Ikke fullført","Ikke fullført"]
["35.",null,null,null,null,null,null,null,null,null,null,null,null,null,"Ikke fullført","","","","Ikke fullført","Ikke fullført"]
["36.",null,null,null,null,null,null,null,null,null,null,null,null,null,"Ikke fullført","","","","Ikke fullført","Ikke fullført"]
["37.",null,null,null,null,null,null,null,null,null,null,null,null,null,"Ikke fullført","","","","Ikke fullført","Ikke fullført"]
["38.",null,null,null,null,null,null,null,null,null,null,null,null,null,"Ikke fullført","","","","Ikke fullført","Ikke fullført"]
["39.",null,null,null,null,null,null,null,null,null,null,null,null,null,"Ikke fullført","","","","Ikke fullført","Ikke fullført"]
["40.",null,null,null,null,null,null,null,null,null,null,null,null,null,"Ikke fullført","","","","Ikke fullført","Ikke fullført"]

{"sheet":"Klasse 3","index":2,"n_rows":47,"n_cols":20,"rows_kept":47,"cut":false,"hidden":false,"merged":[[0,2,0,13],[1,2,1,13],[2,2,2,13],[3,0,3,19],[5,5,5,7],[5,8,5,10],[5,11,5,13]]}
[]
[null,null,{"$f":"+'Klasse 1'!C2:N2","v":"Søndag 23.04.17 - Eikås Motorsenter, Bergen"}]
[null,null,{"$f":"+'Klasse 1'!C3:N3","v":"Arrangør: Hordaland Motorsport"}]
["Tid = Klokketid (ikke inklusive kjegleberøringer).    p = Antall berørte kjegler.    SG = Antall feilet Stop&Go - 3 runder/2 tellende"]
[null,"Resultater Debutant Klasse 3"]
[null,null,null,null,null,"1. runde",null,null,"2. runde",null,null,"3. runde",null,null,null,null,null,null,null,"Slutt-"]
[null,"Startnr","Navn","Klubb","Bil","Tid","p","SG","Tid","p","SG","Tid","p","SG","Resultat A","R1","R2","R3","De to beste","resultat"]
["1.",301,null,null,null,null,null,null,null,null,null,null,null,null,{"$f":"IF(N(S8),INT(S8/60)*10000+(S8-INT(S8/60)*60)*100,\"Ikke fullført\")","v":"Ikke fullført"},{"$f":"IF(N(F8),(+F8/100-INT(F8/10000)*100+INT(F8/10000)*60+G8*2+H8*5),\"\")","v":""},{"$f":"IF(N(I8),(+I8/100-INT(I8/10000)*100+INT(I8/10000)*60+J8*2+K8*5),\"\")","v":""},{"$f":"IF(N(L8),(+L8/100-INT(L8/10000)*100+INT(L8/10000)*60+M8*2+N8*5),\"\")","v":""},{"$f":"IF(COUNT(P8:R8)>=2,SMALL(P8:R8,1)+SMALL(P8:R8,2),\"Ikke fullført\")","v":"Ikke fullført"},{"$f":"IF(N(S8),INT(S8/60)*10000+(S8-INT(S8/60)*60)*100,\"Ikke fullført\")","v":"Ikke fullført"}]
["2.",302,null,null,null,null,null,null,null,null,null,null,null,null,"Ikke fullført","","","","Ikke fullført","Ikke fullført"]
["3.",303,null,null,null,null,null,null,null,null,null,null,null,null,"Ikke fullført","","","","Ikke fullført","Ikke fullført"]
["4.",304,null,null,null,null,null,null,null,null,null,null,null,null,"Ikke fullført","","","","Ikke fullført","Ikke fullført"]
["5.",305,null,null,null,null,null,null,null,null,null,null,null,null,"Ikke fullført","","","","Ikke fullført","Ikke fullført"]
["6.",306,null,null,null,null,null,null,null,null,null,null,null,null,"Ikke fullført","","","","Ikke fullført","Ikke fullført"]
["7.",307,null,null,null,null,null,null,null,null,null,null,null,null,"Ikke fullført","","","","Ikke fullført","Ikke fullført"]
["8.",308,null,null,null,null,null,null,null,null,null,null,null,null,"Ikke fullført","","","","Ikke fullført","Ikke fullført"]
["9.",309,null,null,null,null,null,null,null,null,null,null,null,null,"Ikke fullført","","","","Ikke fullført","Ikke fullført"]
["10.",310,null,null,null,null,null,null,null,null,null,null,null,null,"Ikke fullført","","","","Ikke fullført","Ikke fullført"]
["11.",311,null,null,null,null,null,null,null,null,null,null,null,null,"Ikke fullført","","","","Ikke fullført","Ikke fullført"]
["12.",312,null,null,null,null,null,null,null,null,null,null,null,null,"Ikke fullført","","","","Ikke fullført","Ikke fullført"]
["13.",313,null,null,null,null,null,null,null,null,null,null,null,null,"Ikke fullført","","","","Ikke fullført","Ikke fullført"]
["14.",314,null,null,null,null,null,null,null,null,null,null,null,null,"Ikke fullført","","","","Ikke fullført","Ikke fullført"]
["15.",315,null,null,null,null,null,null,null,null,null,null,null,null,"Ikke fullført","","","","Ikke fullført","Ikke fullført"]
["16.",316,null,null,null,null,null,null,null,null,null,null,null,null,"Ikke fullført","","","","Ikke fullført","Ikke fullført"]
["17.",317,null,null,null,null,null,null,null,null,null,null,null,null,"Ikke fullført","","","","Ikke fullført","Ikke fullført"]
["18.",318,null,null,null,null,null,null,null,null,null,null,null,null,"Ikke fullført","","","","Ikke fullført","Ikke fullført"]
["19.",319,null,null,null,null,null,null,null,null,null,null,null,null,"Ikke fullført","","","","Ikke fullført","Ikke fullført"]
["20.",320,null,null,null,null,null,null,null,null,null,null,null,null,"Ikke fullført","","","","Ikke fullført","Ikke fullført"]
["21.",321,null,null,null,null,null,null,null,null,null,null,null,null,"Ikke fullført","","","","Ikke fullført","Ikke fullført"]
["22.",322,null,null,null,null,null,null,null,null,null,null,null,null,"Ikke fullført","","","","Ikke fullført","Ikke fullført"]
["23.",323,null,null,null,null,null,null,null,null,null,null,null,null,"Ikke fullført","","","","Ikke fullført","Ikke fullført"]
["24.",324,null,null,null,null,null,null,null,null,null,null,null,null,"Ikke fullført","","","","Ikke fullført","Ikke fullført"]
["25.",325,null,null,null,null,null,null,null,null,null,null,null,null,"Ikke fullført","","","","Ikke fullført","Ikke fullført"]
["26.",326,null,null,null,null,null,null,null,null,null,null,null,null,"Ikke fullført","","","","Ikke fullført","Ikke fullført"]
["27.",327,null,null,null,null,null,null,null,null,null,null,null,null,"Ikke fullført","","","","Ikke fullført","Ikke fullført"]
["28.",328,null,null,null,null,null,null,null,null,null,null,null,null,"Ikke fullført","","","","Ikke fullført","Ikke fullført"]
["29.",329,null,null,null,null,null,null,null,null,null,null,null,null,"Ikke fullført","","","","Ikke fullført","Ikke fullført"]
["30.",330,null,null,null,null,null,null,null,null,null,null,null,null,"Ikke fullført","","","","Ikke fullført","Ikke fullført"]
["31.",null,null,null,null,null,null,null,null,null,null,null,null,null,"Ikke fullført","","","","Ikke fullført","Ikke fullført"]
["32.",null,null,null,null,null,null,null,null,null,null,null,null,null,"Ikke fullført","","","","Ikke fullført","Ikke fullført"]
["33.",null,null,null,null,null,null,null,null,null,null,null,null,null,"Ikke fullført","","","","Ikke fullført","Ikke fullført"]
["34.",null,null,null,null,null,null,null,null,null,null,null,null,null,"Ikke fullført","","","","Ikke fullført","Ikke fullført"]
["35.",null,null,null,null,null,null,null,null,null,null,null,null,null,"Ikke fullført","","","","Ikke fullført","Ikke fullført"]
["36.",null,null,null,null,null,null,null,null,null,null,null,null,null,"Ikke fullført","","","","Ikke fullført","Ikke fullført"]
["37.",null,null,null,null,null,null,null,null,null,null,null,null,null,"Ikke fullført","","","","Ikke fullført","Ikke fullført"]
["38.",null,null,null,null,null,null,null,null,null,null,null,null,null,"Ikke fullført","","","","Ikke fullført","Ikke fullført"]
["39.",null,null,null,null,null,null,null,null,null,null,null,null,null,"Ikke fullført","","","","Ikke fullført","Ikke fullført"]
["40.",null,null,null,null,null,null,null,null,null,null,null,null,null,"Ikke fullført","","","","Ikke fullført","Ikke fullført"]

{"sheet":"Klasse 5","index":3,"n_rows":47,"n_cols":20,"rows_kept":47,"cut":false,"hidden":false,"merged":[[0,2,0,13],[1,2,1,13],[2,2,2,13],[3,0,3,19],[5,5,5,7],[5,8,5,10],[5,11,5,13]]}
[]
[null,null,{"$f":"+'Klasse 1'!C2:N2","v":"Søndag 23.04.17 - Eikås Motorsenter, Bergen"}]
[null,null,{"$f":"+'Klasse 1'!C3:N3","v":"Arrangør: Hordaland Motorsport"}]
["Tid = Klokketid (ikke inklusive kjegleberøringer).    p = Antall berørte kjegler.    SG = Antall feilet Stop&Go - 3 runder/2 tellende"]
[null,"Resultater Junior-/Ledsager Klasse 5"]
[null,null,null,null,null,"1. runde",null,null,"2. runde",null,null,"3. runde",null,null,null,null,null,null,null,"Slutt-"]
[null,"Startnr","Navn","Klubb","Bil","Tid","p","SG","Tid","p","SG","Tid","p","SG","Resultat A","R1","R2","R3","De to beste","resultat"]
["1.",501,null,null,null,null,null,null,null,null,null,null,null,null,{"$f":"IF(N(S8),INT(S8/60)*10000+(S8-INT(S8/60)*60)*100,\"Ikke fullført\")","v":"Ikke fullført"},{"$f":"IF(N(F8),(+F8/100-INT(F8/10000)*100+INT(F8/10000)*60+G8*2+H8*5),\"\")","v":""},{"$f":"IF(N(I8),(+I8/100-INT(I8/10000)*100+INT(I8/10000)*60+J8*2+K8*5),\"\")","v":""},{"$f":"IF(N(L8),(+L8/100-INT(L8/10000)*100+INT(L8/10000)*60+M8*2+N8*5),\"\")","v":""},{"$f":"IF(COUNT(P8:R8)>=2,SMALL(P8:R8,1)+SMALL(P8:R8,2),\"Ikke fullført\")","v":"Ikke fullført"},{"$f":"IF(N(S8),INT(S8/60)*10000+(S8-INT(S8/60)*60)*100,\"Ikke fullført\")","v":"Ikke fullført"}]
["2.",502,null,null,null,null,null,null,null,null,null,null,null,null,"Ikke fullført","","","","Ikke fullført","Ikke fullført"]
["3.",503,null,null,null,null,null,null,null,null,null,null,null,null,"Ikke fullført","","","","Ikke fullført","Ikke fullført"]
["4.",504,null,null,null,null,null,null,null,null,null,null,null,null,"Ikke fullført","","","","Ikke fullført","Ikke fullført"]
["5.",505,null,null,null,null,null,null,null,null,null,null,null,null,"Ikke fullført","","","","Ikke fullført","Ikke fullført"]
["6.",506,null,null,null,null,null,null,null,null,null,null,null,null,"Ikke fullført","","","","Ikke fullført","Ikke fullført"]
["7.",507,null,null,null,null,null,null,null,null,null,null,null,null,"Ikke fullført","","","","Ikke fullført","Ikke fullført"]
["8.",508,null,null,null,null,null,null,null,null,null,null,null,null,"Ikke fullført","","","","Ikke fullført","Ikke fullført"]
["9.",509,null,null,null,null,null,null,null,null,null,null,null,null,"Ikke fullført","","","","Ikke fullført","Ikke fullført"]
["10.",510,null,null,null,null,null,null,null,null,null,null,null,null,"Ikke fullført","","","","Ikke fullført","Ikke fullført"]
["11.",511,null,null,null,null,null,null,null,null,null,null,null,null,"Ikke fullført","","","","Ikke fullført","Ikke fullført"]
["12.",512,null,null,null,null,null,null,null,null,null,null,null,null,"Ikke fullført","","","","Ikke fullført","Ikke fullført"]
["13.",513,null,null,null,null,null,null,null,null,null,null,null,null,"Ikke fullført","","","","Ikke fullført","Ikke fullført"]
["14.",514,null,null,null,null,null,null,null,null,null,null,null,null,"Ikke fullført","","","","Ikke fullført","Ikke fullført"]
["15.",515,null,null,null,null,null,null,null,null,null,null,null,null,"Ikke fullført","","","","Ikke fullført","Ikke fullført"]
["16.",516,null,null,null,null,null,null,null,null,null,null,null,null,"Ikke fullført","","","","Ikke fullført","Ikke fullført"]
["17.",517,null,null,null,null,null,null,null,null,null,null,null,null,"Ikke fullført","","","","Ikke fullført","Ikke fullført"]
["18.",518,null,null,null,null,null,null,null,null,null,null,null,null,"Ikke fullført","","","","Ikke fullført","Ikke fullført"]
["19.",519,null,null,null,null,null,null,null,null,null,null,null,null,"Ikke fullført","","","","Ikke fullført","Ikke fullført"]
["20.",520,null,null,null,null,null,null,null,null,null,null,null,null,"Ikke fullført","","","","Ikke fullført","Ikke fullført"]
["21.",521,null,null,null,null,null,null,null,null,null,null,null,null,"Ikke fullført","","","","Ikke fullført","Ikke fullført"]
["22.",522,null,null,null,null,null,null,null,null,null,null,null,null,"Ikke fullført","","","","Ikke fullført","Ikke fullført"]
["23.",523,null,null,null,null,null,null,null,null,null,null,null,null,"Ikke fullført","","","","Ikke fullført","Ikke fullført"]
["24.",524,null,null,null,null,null,null,null,null,null,null,null,null,"Ikke fullført","","","","Ikke fullført","Ikke fullført"]
["25.",525,null,null,null,null,null,null,null,null,null,null,null,null,"Ikke fullført","","","","Ikke fullført","Ikke fullført"]
["26.",526,null,null,null,null,null,null,null,null,null,null,null,null,"Ikke fullført","","","","Ikke fullført","Ikke fullført"]
["27.",527,null,null,null,null,null,null,null,null,null,null,null,null,"Ikke fullført","","","","Ikke fullført","Ikke fullført"]
["28.",528,null,null,null,null,null,null,null,null,null,null,null,null,"Ikke fullført","","","","Ikke fullført","Ikke fullført"]
["29.",529,null,null,null,null,null,null,null,null,null,null,null,null,"Ikke fullført","","","","Ikke fullført","Ikke fullført"]
["30.",530,null,null,null,null,null,null,null,null,null,null,null,null,"Ikke fullført","","","","Ikke fullført","Ikke fullført"]
["31.",null,null,null,null,null,null,null,null,null,null,null,null,null,"Ikke fullført","","","","Ikke fullført","Ikke fullført"]
["32.",null,null,null,null,null,null,null,null,null,null,null,null,null,"Ikke fullført","","","","Ikke fullført","Ikke fullført"]
["33.",null,null,null,null,null,null,null,null,null,null,null,null,null,"Ikke fullført","","","","Ikke fullført","Ikke fullført"]
["34.",null,null,null,null,null,null,null,null,null,null,null,null,null,"Ikke fullført","","","","Ikke fullført","Ikke fullført"]
["35.",null,null,null,null,null,null,null,null,null,null,null,null,null,"Ikke fullført","","","","Ikke fullført","Ikke fullført"]
["36.",null,null,null,null,null,null,null,null,null,null,null,null,null,"Ikke fullført","","","","Ikke fullført","Ikke fullført"]
["37.",null,null,null,null,null,null,null,null,null,null,null,null,null,"Ikke fullført","","","","Ikke fullført","Ikke fullført"]
["38.",null,null,null,null,null,null,null,null,null,null,null,null,null,"Ikke fullført","","","","Ikke fullført","Ikke fullført"]
["39.",null,null,null,null,null,null,null,null,null,null,null,null,null,"Ikke fullført","","","","Ikke fullført","Ikke fullført"]
["40.",null,null,null,null,null,null,null,null,null,null,null,null,null,"Ikke fullført","","","","Ikke fullført","Ikke fullført"]

{"sheet":"Resultater på en side","index":4,"n_rows":4,"n_cols":3,"rows_kept":4,"cut":false,"hidden":false,"merged":[[0,2,0,13],[1,2,1,13],[2,2,2,13],[3,0,3,19]]}
[]
[null,null,{"$f":"+'Klasse 1'!C2:N2","v":"Søndag 23.04.17 - Eikås Motorsenter, Bergen"}]
[null,null,{"$f":"+'Klasse 1'!C3:N3","v":"Arrangør: Hordaland Motorsport"}]
["Tid = Klokketid (ikke inklusive kjegleberøringer).    p = Antall berørte kjegler.    SG = Antall feilet Stop&Go - 3 runder/2 tellende"]

{"sheet":"Bruksanvisning","index":5,"n_rows":21,"n_cols":2,"rows_kept":21,"cut":false,"hidden":false,"merged":[]}
[]
[null,"Bruksanvisning for nye brukere:"]
["-","Husk å bruke dette skjema som MAL, og ikke lagre endringer her. Når dere starter et løp, så lagre filen med en gang med et annet navn."]
["-","Alle endringer i headingen gjøres i fanen \"Klasse 1\" Infoen her vil komme automatisk på de andre fanene."]
["-","Skriv inn tiden uten komma, kolon, mellomrom eller noe annet, skriv for eksempel 12234 og så bruk tabulator til neste kolonne. "]
[null,"Tiden kommer da opp som 1 min 22 sek og 34 hundredeler."]
["-","I kolonnen for berøring, skriver dere inn antall berøringer, og 2 sekunder blir automatisk tatt med i beregningen på sluttiden."]
["-","I kolonnen for \"Stop & Go\", skriver dere inn antall feil, og 5 sekunder blir automatisk tatt med i beregningen på sluttiden."]
["-","På fanen \"Resultater på en side\" er det mulig å kopiere inn ferdige resultater fra Klasse 1, 2 og 3, slik at man slipper å skrive ut 3 ark, men kan få alle resultater på ett utskriftark."]
["-","Jeg sorterer alltid manuelt, ved å merke klassen, og høyreklikke for å velge sortering - etter sluttresultatet."]
[]
[]
[]
["-","Under finner du en litt eldre bruksanvisning"]
[]
[null,"Husk at listene sorteres ved å trykke «Ctrl-R»"]
[null,"Hvis du får en feilmelding angående makro og sikkerhetsnivå,"]
[null,"så les kapittel 1 i bruksanvisningen."]
[]
[]
[null,"Åpne dette Word-dokumentet for å lese bruksanvisningen:"]